fUST/lending_fUST_20240304
["ID","MTS","AMOUNT","RATE_DAILY","PERIOD"]
[316448211,1709484642707,-1771.68,0.00023999,2]
[316448214,1709484642716,-1771.68,0.00023999,2]
[316448217,1709484642726,-1771.68,0.00023999,2]
[316448220,1709484642735,-1771.68,0.00023999,2]
[316448222,1709484642744,-500.0,0.00023999,2]
[316448226,1709484642756,-500.0,0.00023999,2]
[316448229,1709484642765,-1771.68,0.00023999,2]
[316448232,1709484642773,-500.0,0.00023999,2]
[316448235,1709484642783,-1771.68,0.00023999,2]
[316448237,1709484642792,-508.86326725,0.00023999,2]
[316448239,1709484642801,-1771.68,0.00023999,2]
[316448240,1709484642810,-1771.68,0.00023999,2]
[316448243,1709484642820,-1771.68,0.00023999,2]
[316448244,1709484642829,-1771.68,0.00023999,2]
[316448246,1709484642839,-1771.68,0.00023999,2]
[316448249,1709484642849,-1771.68,0.00023999,2]
[316448250,1709484642860,-1771.68,0.00023999,2]
[316448253,1709484642870,-1771.68,0.00023999,2]
[316448255,1709484642879,-1771.68,0.00023999,2]
[316448256,1709484642889,-1771.71486627,0.00023999,2]
[316448259,1709484642899,-500.0,0.00023999,2]
[316448261,1709484642908,-500.0,0.00023999,2]
[316448263,1709484642919,-500.0,0.00023999,2]
[316448265,1709484642928,-500.0,0.00023999,2]
[316448266,1709484642941,-500.0,0.00023999,2]
[316448269,1709484642952,-515.57,0.00023999,2]
[316448270,1709484642964,-500.0,0.00023999,2]
[316448272,1709484642973,-500.0,0.00023999,2]
[316448274,1709484642982,-500.0,0.00023999,2]
[316448276,1709484642993,-583.42365973,0.00023999,2]
[316448278,1709484643002,-500.0,0.00023999,2]
[316448280,1709484643012,-500.0,0.00023999,2]
[316448282,1709484643021,-500.0,0.00023999,2]
[316448284,1709484643031,-500.0,0.00023999,2]
[316448286,1709484643041,-500.0,0.00023999,2]
[316448289,1709484643053,-500.0,0.00023999,2]
[316448291,1709484643063,-500.0,0.00023999,2]
[316448293,1709484643074,-500.0,0.00023999,2]
[316448295,1709484643083,-150.99210272,0.00023999,2]
[316448297,1709484643093,-964036.70352421,0.00024,5]
[316448299,1709484643101,-175.5,0.00024,2]
[316448301,1709484643111,-175.5,0.00024,2]
[316448303,1709484643120,-1494.53506956,0.00024,2]
[316448305,1709484643128,-150.0,0.00024,2]
[316448307,1709484643137,-340855.12977711,0.00024,5]
[316448309,1709484643152,-60443.82300426,0.00024,5]
[316448620,1709484646098,-81002.5,0.00024,5]
[316449877,1709485109099,-250.0,0.00019945,2]
[316449878,1709485109123,-170.3974117,0.00020088,2]
[316449879,1709485109146,-2112.65250329,0.00020778,2]
[316449880,1709485109170,-5966.95008501,0.00020778,2]
[316449926,1709485625590,24900.0,0.00019408,2]
[316449934,1709485658233,983.5022252,0.0001928,2]
[316449937,1709485703221,479.84949633,0.000189,2]
[316449950,1709485755095,-1234.00146402,0.00019558,2]
[316449951,1709485755115,-15580.99724598,0.00019558,2]
[316449952,1709485757192,-351.10844839,0.00019558,2]
[316449953,1709485757212,-7235.00036151,0.00019559,2]
[316449954,1709485757231,-11015.0382869,0.00019561,2]
[316449955,1709485757252,-166.666666,0.00019571,2]
[316449956,1709485757271,-17772.0419831,0.00019707,2]
[316449957,1709485757291,-500.0,0.00020547,2]
[316449958,1709485757310,-500.0,0.00020547,2]
[316449959,1709485757330,-500.0,0.00020547,2]
[316449960,1709485757350,-500.0,0.00020547,2]
[316449961,1709485757369,-500.95102559,0.00020547,2]
[316449962,1709485757388,-500.0,0.00020547,2]
[316449963,1709485757408,-500.0,0.00020547,2]
[316449964,1709485757429,-500.0,0.00020547,2]
[316449965,1709485757449,-500.0,0.00020547,2]
[316449966,1709485757470,-500.0,0.00020547,2]
[316449967,1709485757489,-500.0,0.00020547,2]
[316449968,1709485757508,-502.10295356,0.00020778,2]
[316449969,1709485757527,-292.36750744,0.00020778,2]
[316449970,1709485757546,-500.0,0.00020778,2]
[316449971,1709485757564,-500.0,0.00020778,2]
[316449972,1709485757583,-500.84755467,0.00020778,2]
[316449973,1709485757603,-500.0,0.00020778,2]
[316449974,1709485757624,-500.0,0.00020778,2]
[316449975,1709485757645,-500.0,0.00020778,2]
[316449976,1709485757666,-500.0,0.00020778,2]
[316449977,1709485757685,-500.38892661,0.00020778,2]
[316449978,1709485757704,-500.0,0.00020778,2]
[316449979,1709485757723,-500.0,0.00020778,2]
[316449980,1709485757745,-500.0,0.00020778,2]
[316449981,1709485757764,-500.0,0.00020778,2]
[316449982,1709485757787,-500.0,0.00020778,2]
[316449983,1709485757811,-500.0,0.00020778,2]
[316449984,1709485757831,-500.0,0.00020779,2]
[316449985,1709485757851,-500.0,0.00020779,2]
[316449986,1709485757871,-500.0,0.00020779,2]
[316449987,1709485757890,-500.0,0.00020779,2]
[316449988,1709485757909,-156.79961223,0.00020929,2]
[316449989,1709485757930,-156.27,0.00020989,3]
[316449990,1709485757950,-468.86,0.00020989,3]
[316449991,1709485757972,-625.09,0.0002099,3]
[316449992,1709485757991,-312.55,0.0002099,3]
[316449993,1709485758012,-500.0,0.00020999,2]
[316449994,1709485758031,-500.0,0.00020999,2]
[316449995,1709485758052,-201.80826819,0.00020999,2]
[316449996,1709485758073,-500.0,0.00020999,2]
[316449997,1709485758092,-500.0,0.00020999,2]
[316449998,1709485758111,-500.0,0.00020999,2]
[316449999,1709485758130,-500.0,0.00020999,2]
[316450000,1709485758151,-500.0,0.00020999,2]
[316450001,1709485758172,-500.0,0.00020999,2]
[316450002,1709485758191,-524.12697976,0.00020999,2]
[316450003,1709485758211,-500.0,0.00020999,2]
[316450004,1709485758231,-276.93129558,0.00020999,2]
[316450005,1709485758251,-500.0,0.00020999,2]
[316450006,1709485758272,-500.0,0.00020999,2]
[316450007,1709485758291,-500.0,0.00020999,2]
[316450008,1709485758311,-500.0,0.00020999,2]
[316450009,1709485758334,-368.06715263,0.00020999,2]
[316450010,1709485758353,-500.0,0.00020999,2]
[316450011,1709485758372,-500.0,0.00020999,2]
[316450012,1709485758392,-500.0,0.00020999,2]
[316450013,1709485758412,-500.0,0.00020999,2]
[316450014,1709485758432,-196.60059784,0.00020999,2]
[316450015,1709485768127,-576.34537584,0.00020547,2]
[316450016,1709485768149,-500.0,0.00020547,2]
[316450017,1709485768172,-303.39940216,0.00020999,2]
[316450018,1709485768192,-427.03666208,0.00020999,2]
[316450019,1709485768212,-500.0,0.00020999,2]
[316450020,1709485768232,-547.54291504,0.00020999,2]
[316450021,1709485768252,-476.31977155,0.00020999,2]
[316450022,1709485768272,-503.50055741,0.00020999,2]
[316450023,1709485768292,-500.0,0.00020999,2]
[316450024,1709485768312,-500.0,0.00020999,2]
[316450025,1709485768332,-323.53288608,0.00020999,2]
[316450026,1709485768353,-500.0,0.00020999,2]
[316450027,1709485768375,-500.0,0.00020999,2]
[316450028,1709485768396,-500.0,0.00020999,2]
[316450029,1709485768416,-500.56334309,0.00020999,2]
[316450030,1709485768439,-500.0,0.00020999,2]
[316450031,1709485768460,-500.0,0.00020999,2]
[316450032,1709485768480,-500.0,0.00020999,2]
[316450033,1709485768500,-500.0,0.00020999,2]
[316450034,1709485768524,-500.0,0.00020999,2]
[316450035,1709485768544,-500.0,0.00020999,2]
[316450036,1709485768564,-500.0,0.00020999,2]
[316450037,1709485768584,-500.0,0.00020999,2]
[316450038,1709485768700,-500.0,0.00020999,2]
[316450039,1709485768721,-500.0,0.00020999,2]
[316450040,1709485768741,-500.0,0.00020999,2]
[316450041,1709485768762,-500.98154073,0.00020999,2]
[316450042,1709485768781,-500.48570779,0.00020999,2]
[316450043,1709485768800,-500.0,0.00020999,2]
[316450044,1709485768822,-500.0,0.00020999,2]
[316450045,1709485768843,-500.0,0.00020999,2]
[316450046,1709485768864,-500.0,0.00020999,2]
[316450047,1709485768884,-500.0,0.00020999,2]
[316450048,1709485768904,-206.26258785,0.00020999,2]
[316450049,1709485768925,-500.0,0.00020999,2]
[316450050,1709485768944,-500.0,0.00020999,2]
[316450051,1709485768965,-500.0,0.00020999,2]
[316450052,1709485768988,-500.0,0.00020999,2]
[316450053,1709485769010,-500.0,0.00020999,2]
[316450054,1709485769030,-500.0,0.00020999,2]
[316450055,1709485769050,-500.0,0.00020999,2]
[316450056,1709485769071,-220.0,0.00020999,2]
[316450057,1709485769092,-501.91045605,0.00020999,2]
[316450058,1709485769112,-291.79205979,0.00020999,2]
[316450059,1709485769133,-500.0,0.00020999,2]
[316450060,1709485769154,-500.0,0.00020999,2]
[316450061,1709485769176,-500.0,0.00020999,2]
[316450062,1709485769196,-500.0,0.00020999,2]
[316450063,1709485769216,-286.94504097,0.00020999,2]
[316450064,1709485769237,-500.0,0.00020999,2]
[316450065,1709485769259,-1697.86,0.00020999,2]
[316450066,1709485769279,-500.0,0.00020999,2]
[316450067,1709485769299,-500.0,0.00020999,2]
[316450068,1709485769318,-500.0,0.00020999,2]
[316450069,1709485769338,-500.80899268,0.00020999,2]
[316450070,1709485769359,-29585.03079978,0.00021,2]
[316450071,1709485769379,-500.0,0.00021029,2]
[316450072,1709485769400,-500.0,0.00021029,2]
[316450073,1709485769420,-478.1902784,0.00021029,2]
[316450260,1709485833798,-500.0,0.00020547,2]
[316450262,1709485833807,-500.0,0.00020547,2]
[316450264,1709485833817,-500.0,0.00020547,2]
[316450266,1709485833826,-500.0,0.00020547,2]
[316450268,1709485833835,-154.84515485,0.00020777,2]
[316450270,1709485833845,-500.0,0.00020778,2]
[316450272,1709485833854,-500.0,0.00020778,2]
[316450274,1709485833863,-500.0,0.00020778,2]
[316450276,1709485833872,-166.666666,0.00020809,2]
[316450278,1709485833881,-500.0,0.00020998,2]
[316450280,1709485833890,-500.0,0.00020998,2]
[316450282,1709485833899,-500.0,0.00020999,2]
[316450284,1709485833909,-500.0,0.00020999,2]
[316450286,1709485833919,-500.0,0.00020999,2]
[316450288,1709485833929,-500.0,0.00020999,2]
[316450290,1709485833939,-500.0,0.00020999,2]
[316450292,1709485833947,-500.0,0.00020999,2]
[316450294,1709485833956,-503.6909665,0.00020999,2]
[316450296,1709485833965,-500.0,0.00020999,2]
[316450298,1709485833975,-26.23464411,0.00021029,2]
[316450300,1709485833984,-500.0,0.00021029,2]
[316450302,1709485833996,-583.42365973,0.00021709,2]
[316450304,1709485834005,-3929.36297917,0.0002171,2]
[316450306,1709485834014,-178.31464164,0.00022198,2]
[316450308,1709485834025,-500.0,0.00022297,2]
[316450310,1709485834033,-500.0,0.00022297,2]
[316450312,1709485834042,-234.74885017,0.00022298,2]
[316450314,1709485834051,-500.0,0.00022298,2]
[316450316,1709485834061,-500.0,0.00022298,2]
[316450318,1709485834070,-500.0,0.00022298,2]
[316450320,1709485834079,-500.0,0.00022298,2]
[316450322,1709485834090,-500.0,0.00022298,2]
[316450324,1709485834099,-500.0,0.00022298,2]
[316450326,1709485834108,-500.0,0.00022298,2]
[316450328,1709485834117,-500.0,0.00022298,2]
[316450329,1709485834126,-563.815251,0.00022298,2]
[316450331,1709485834136,-500.0,0.00022298,2]
[316450333,1709485834144,-161.7205281,0.00022298,2]
[316450335,1709485834154,-500.0,0.00022298,2]
[316450337,1709485834163,-500.0,0.00022298,2]
[316450339,1709485834171,-462.08600055,0.00022298,2]
[316450341,1709485834181,-500.0,0.00022298,2]
[316450343,1709485834190,-500.0,0.00022298,2]
[316450345,1709485834199,-500.0,0.00022298,2]
[316450347,1709485834208,-506.51747823,0.00022298,2]
[316450349,1709485834217,-279.16277785,0.00022298,2]
[316450351,1709485834227,-367.05636981,0.00022298,2]
[316450353,1709485834236,-500.0,0.00022298,2]
[316450355,1709485834245,-1697.86,0.00022298,2]
[316450357,1709485834255,-500.0,0.00022298,2]
[316450359,1709485834265,-500.0,0.00022298,2]
[316450361,1709485834274,-500.0,0.00022298,2]
[316450363,1709485834283,-634.27487946,0.00022299,2]
[316450365,1709485834293,-455.40911835,0.00022299,2]
[316450367,1709485834302,-500.0,0.00022299,2]
[316450369,1709485834311,-378.28706298,0.00022299,2]
[316450371,1709485834320,-535.46066707,0.00022299,2]
[316450373,1709485834331,-500.20799361,0.00022299,2]
[316450375,1709485834340,-500.0,0.00022299,2]
[316450377,1709485834348,-504.12769938,0.00022299,2]
[316450379,1709485834358,-500.0,0.00022299,2]
[316450381,1709485834367,-502.12525697,0.00022299,2]
[316450383,1709485834377,-156.20505734,0.00022299,2]
[316450385,1709485834387,-500.0,0.00022299,2]
[316450387,1709485834397,-500.0,0.00022299,2]
[316450389,1709485834406,-501.48133259,0.00022299,2]
[316450391,1709485834415,-500.0,0.00022299,2]
[316450393,1709485834424,-634.11959593,0.00022299,2]
[316450395,1709485834434,-501.04707359,0.00022299,2]
[316450397,1709485834442,-331.8449325,0.00022299,2]
[316450399,1709485834452,-500.0,0.00022299,2]
[316450401,1709485834461,-500.77803753,0.00022299,2]
[316450403,1709485834470,-500.0,0.00022299,2]
[316450405,1709485834480,-500.0,0.00022299,2]
[316450407,1709485834489,-329.73572866,0.00022299,2]
[316450409,1709485834498,-312.54,0.00022359,3]
[316450411,1709485834507,-1250.18,0.0002236,3]
[316450413,1709485834516,-625.1,0.0002236,3]
[316450415,1709485834525,-500.0,0.00022551,2]
[316450417,1709485834534,-150.99210272,0.00022551,2]
[316450419,1709485834543,-500.0,0.00022552,2]
[316450421,1709485834552,-500.0,0.00022552,2]
[316450423,1709485834562,-500.0,0.00022552,2]
[316450425,1709485834571,-594.19679759,0.00022552,2]
[316450427,1709485834579,-500.0,0.00022552,2]
[316450429,1709485834589,-500.0,0.00022552,2]
[316450431,1709485834598,-500.0,0.00022552,2]
[316450433,1709485834608,-500.0,0.00022552,2]
[316450435,1709485834618,-1697.86,0.00022552,2]
[316450437,1709485834627,-500.0,0.00022552,2]
[316450439,1709485834635,-500.0,0.00022552,2]
[316450441,1709485834645,-32768.8784949,0.00022553,3]
[316450443,1709485834655,-431.24401752,0.00022553,2]
[316450445,1709485834663,-371.10404721,0.00022553,2]
[316450447,1709485834672,-1875.91240297,0.00023,2]
[316450449,1709485834681,-14293.936083,0.00023,27]
[316450451,1709485834692,-1453.78256982,0.00023,2]
[316450453,1709485834703,-4568.05685897,0.00023008,5]
[316450455,1709485834712,-153.0,0.00023151,2]
[316450457,1709485834720,-621.56243201,0.00023834,2]
[316450459,1709485834731,-500.0,0.00023898,2]
[316450461,1709485834740,-500.0,0.00023899,2]
[316450463,1709485834749,-500.0,0.00023899,2]
[316450465,1709485834758,-500.0,0.00023899,2]
[316450467,1709485834767,-500.0,0.00023899,2]
[316450469,1709485834777,-500.0,0.00023899,2]
[316450471,1709485834787,-500.0,0.00023899,2]
[316450473,1709485834796,-500.0,0.00023899,2]
[316450475,1709485834805,-500.0,0.00023899,2]
[316450477,1709485834814,-1697.86,0.00023899,2]
[316450479,1709485834823,-1697.86,0.00023899,2]
[316450481,1709485834833,-500.0,0.00023899,2]
[316450483,1709485834842,-508.86326725,0.00023899,2]
[316450485,1709485834852,-500.0,0.00023899,2]
[316450487,1709485834861,-51280.11944893,0.000239,2]
[316450489,1709485834871,-479.84949633,0.000239,2]
[316450491,1709485834881,-3411.79955889,0.00023974,2]
[316450493,1709485834890,-502.3848003,0.00023997,2]
[316450495,1709485834899,-192.93216986,0.00023997,2]
[316450497,1709485834908,-184.5743335,0.00023998,2]
[316450499,1709485834916,-527.20285687,0.00023998,2]
[316450501,1709485834925,-556.67279275,0.00023998,2]
[316450503,1709485834934,-538.54259214,0.00023998,2]
[316450505,1709485834944,-400.32603254,0.00023998,2]
[316450507,1709485834954,-293.52881489,0.00023998,2]
[316450509,1709485834964,-155.77454504,0.00023998,2]
[316450511,1709485834973,-1324.29116251,0.00023998,2]
[316450513,1709485834982,-155.00155002,0.00023998,2]
[316450515,1709485834992,-500.0,0.00023998,2]
[316450517,1709485835004,-567.89157405,0.00023998,2]
[316450519,1709485835014,-155.03255684,0.00023998,2]
[316450521,1709485835023,-274.0783514,0.00023998,2]
[316450523,1709485835032,-668.57801925,0.00023998,2]
[316450525,1709485835043,-155.46132035,0.00023998,2]
[316450527,1709485835052,-155.31537618,0.00023998,2]
[316450529,1709485835062,-500.0,0.00023998,2]
[316450531,1709485835071,-500.0,0.00023998,2]
[316450533,1709485835081,-1697.86,0.00023998,2]
[316450535,1709485835091,-9064.95897903,0.00023998,2]
[316450537,1709485835101,-500.0,0.00023998,2]
[316450539,1709485835110,-500.0,0.00023998,2]
[316450541,1709485835119,-160.0,0.00023999,2]
[316450543,1709485835128,-400.0,0.00023999,2]
[316450545,1709485835138,-515.57,0.00023999,2]
[316450547,1709485835146,-500.0,0.00023999,2]
[316450549,1709485835156,-500.0,0.00023999,2]
[316450551,1709485835165,-500.0,0.00023999,2]
[316450553,1709485835175,-500.0,0.00023999,2]
[316450555,1709485835184,-500.0,0.00023999,2]
[316450557,1709485835193,-270.12965085,0.00023999,2]
[316450559,1709485835203,-1697.86,0.00023999,2]
[316450561,1709485835212,-1697.86,0.00023999,2]
[316450563,1709485835221,-1697.86,0.00023999,2]
[316450565,1709485835231,-1697.86,0.00023999,2]
[316450567,1709485835241,-1697.86,0.00023999,2]
[316450569,1709485835250,-1697.86,0.00023999,2]
[316450571,1709485835259,-1697.86,0.00023999,2]
[316450573,1709485835268,-1697.86,0.00023999,2]
[316450575,1709485835276,-1697.86,0.00023999,2]
[316450577,1709485835285,-1697.86,0.00023999,2]
[316450579,1709485835294,-1697.86,0.00023999,2]
[316450581,1709485835303,-1697.86,0.00023999,2]
[316450583,1709485835312,-1697.86,0.00023999,2]
[316450585,1709485835321,-1697.86,0.00023999,2]
[316450586,1709485835330,-1697.86,0.00023999,2]
[316450589,1709485835340,-1697.86,0.00023999,2]
[316450591,1709485835349,-1697.86,0.00023999,2]
[316450592,1709485835358,-1697.89486627,0.00023999,2]
[316450594,1709485835367,-255.32,0.00023999,2]
[316450596,1709485835376,-671659.28250457,0.00024,5]
[316450604,1709485835435,-24268.82169271,0.00024,5]
[316450902,1709485838371,-1028.33455335,0.0002255,2]
[316450904,1709485838380,-1414341.51873634,0.00024,5]
[316450907,1709485838392,-45550.87022025,0.00024,5]
[316450916,1709485838474,-11110.1855114,0.00024,5]
[316450919,1709485838487,-9252.1797096,0.00024,5]
[316451072,1709485841102,-57203.63876722,0.00024,5]
[316451075,1709485841114,-28569.23621022,0.00024,5]
[316451078,1709485841136,-3953.1218135,0.00024,5]
[316451080,1709485841148,-1922.092878,0.00024,5]
[316451338,1709485843120,-4859.84299656,0.00024,5]
[316451346,1709485843192,-3157.08445785,0.00024,5]
[316451661,1709485846272,-1145.16705967,0.00024,5]
[316451663,1709485846283,-46812.68356415,0.00024,5]
[316453399,1709485959944,4796.84,0.0002,30]
[316453400,1709485959966,1000.0,0.0002,30]
[316453401,1709485959987,700.0,0.0002,30]
[316453402,1709485960008,3503.16,0.0002,30]
[316453405,1709486004844,496.84,0.0002,30]
[316453406,1709486004878,9503.16,0.0002,30]
[316453408,1709486023541,4371.28578602,0.0002,30]
[316453409,1709486023574,5628.71421398,0.0002,30]
[316453434,1709486348858,1000.0,0.00019,2]
[316453454,1709486542794,165.840318,0.00019328,2]
[316453463,1709486621851,9103.91603554,0.00019376,2]
[316453468,1709486838175,-166.666666,0.00019178,2]
[316453469,1709486838196,-1028.33455335,0.00019369,2]
[316453470,1709486838217,-2124.97879065,0.0001937,2]
[316453476,1709486950130,-215.20442518,0.000189,2]
[316453477,1709486950150,-270.2865101,0.00019308,2]
[316453478,1709486950171,-3141.19599029,0.00019375,2]
[316453479,1709486950192,-58034.66861435,0.00019375,2]
[316453480,1709486950212,-6939.79436476,0.00019376,2]
[316453481,1709486950239,-313.9895027,0.00019531,2]
[316453482,1709486950259,-2513.0361615,0.00019602,2]
[316453483,1709486950278,-15928.06357623,0.00020542,2]
[316453484,1709486950298,-501.11367411,0.00020547,2]
[316453485,1709486950319,-501.0414343,0.00020547,2]
[316453486,1709486950340,-507.460159,0.00020547,2]
[316453487,1709486950361,-557.44561971,0.00020547,2]
[316453488,1709486950381,-500.0,0.00020547,2]
[316453489,1709486950401,-500.0,0.00020547,2]
[316453490,1709486950423,-500.0,0.00020547,2]
[316453491,1709486950444,-500.0,0.00020547,2]
[316453492,1709486950464,-500.0,0.00020547,2]
[316453493,1709486950484,-500.0,0.00020547,2]
[316453494,1709486950505,-500.0,0.00020547,2]
[316453495,1709486950526,-500.0,0.00020547,2]
[316453496,1709486950547,-257.36341085,0.00020547,2]
[316453497,1709486950566,-501.33361739,0.00020778,2]
[316453498,1709486950585,-502.82593607,0.00020778,2]
[316453499,1709486950605,-502.86788127,0.00020778,2]
[316453500,1709486950624,-500.0,0.00020778,2]
[316453501,1709486950643,-500.0,0.00020778,2]
[316453502,1709486950663,-500.0,0.00020778,2]
[316453503,1709486950683,-501.01240086,0.00020999,2]
[316453504,1709486950703,-501.64376895,0.00020999,2]
[316453505,1709486950723,-502.58498573,0.00020999,2]
[316453506,1709486950742,-623.90461055,0.00020999,2]
[316453507,1709486950762,-389.58520978,0.00020999,2]
[316453828,1709487034853,-500.0,0.00020547,2]
[316453831,1709487034874,-500.0,0.00020547,2]
[316453834,1709487034883,-38.90118801,0.00020999,2]
[316453837,1709487034892,-535.7623023,0.00022544,2]
[316453840,1709487034901,-210.49,0.00022545,3]
[316453843,1709487034911,-340.91332865,0.00022556,2]
[316453888,1709487035438,-159.08667135,0.00022556,2]
[316453889,1709487035450,-500.0,0.00022556,2]
[316453890,1709487035459,-58034.66861435,0.00022556,2]
[316453892,1709487035469,-8214.20135523,0.00022557,2]
[316453905,1709487035598,-2387.56944315,0.00022557,2]
[316453907,1709487035608,-527.54288027,0.00022557,2]
[316453909,1709487035618,-439.63463003,0.00022564,2]
[316453911,1709487035628,-165.703252,0.00022709,2]
[316453913,1709487035638,-228.40284295,0.00023008,2]
[316453915,1709487035647,-606.324768,0.00023898,2]
[316453917,1709487035657,-215.20442518,0.000239,2]
[316453919,1709487035666,-404.57846919,0.000239,2]
[316453921,1709487035676,-501.36430403,0.00023997,2]
[316453923,1709487035685,-500.0,0.00023997,2]
[316453925,1709487035698,-500.0,0.00023997,2]
[316453927,1709487035707,-500.0,0.00023997,2]
[316453929,1709487035716,-502.04935941,0.00023997,2]
[316453931,1709487035725,-602.10840966,0.00023997,2]
[316453933,1709487035735,-2433.05863856,0.00023998,2]
[316453935,1709487035744,-155.08219356,0.00023998,2]
[316453937,1709487035754,-155.08219356,0.00023998,2]
[316453939,1709487035764,-1184.92812732,0.00023998,2]
[316453941,1709487035774,-6913.605584,0.00023998,2]
[316453943,1709487035783,-290.08429773,0.00023998,2]
[316453945,1709487035792,-190.0,0.00023998,2]
[316453947,1709487035802,-248.65529344,0.00023998,2]
[316453949,1709487035811,-155.08374522,0.00023998,2]
[316453951,1709487035820,-324.83461874,0.00023998,2]
[316453953,1709487035830,-280.1351659,0.00023998,2]
[316453955,1709487035839,-883.81760526,0.00023998,2]
[316453957,1709487035850,-155.13590322,0.00023998,2]
[316453959,1709487035859,-1604.8167343,0.00023998,2]
[316453961,1709487035868,-155.08374522,0.00023998,2]
[316453963,1709487035878,-744.94284367,0.00023998,2]
[316453965,1709487035888,-155.02480397,0.00023998,2]
[316453967,1709487035896,-838.62227505,0.00023998,2]
[316453969,1709487035905,-305.71240945,0.00023999,2]
[316453971,1709487035914,-500.0,0.00023999,2]
[316453973,1709487035924,-638.4,0.00023999,2]
[316453975,1709487035933,-500.0,0.00023999,2]
[316453977,1709487035942,-500.0,0.00023999,2]
[316453979,1709487035951,-500.0,0.00023999,2]
[316453981,1709487035960,-500.0,0.00023999,2]
[316453983,1709487035969,-500.0,0.00023999,2]
[316453985,1709487035978,-500.0,0.00023999,2]
[316453987,1709487035988,-500.0,0.00023999,2]
[316453989,1709487035998,-500.0,0.00023999,2]
[316453990,1709487036009,-500.0,0.00023999,2]
[316453992,1709487036021,-500.0,0.00023999,2]
[316453994,1709487036031,-442.6,0.00023999,2]
[316453996,1709487036042,-500.0,0.00023999,2]
[316453998,1709487036052,-500.0,0.00023999,2]
[316454000,1709487036062,-500.0,0.00023999,2]
[316454002,1709487036073,-500.0,0.00023999,2]
[316454004,1709487036082,-500.0,0.00023999,2]
[316454006,1709487036092,-500.0,0.00023999,2]
[316454008,1709487036101,-500.0,0.00023999,2]
[316454010,1709487036113,-500.0,0.00023999,2]
[316454012,1709487036124,-500.0,0.00023999,2]
[316454014,1709487036136,-500.0,0.00023999,2]
[316454016,1709487036146,-500.0,0.00023999,2]
[316454018,1709487036156,-500.0,0.00023999,2]
[316454020,1709487036166,-500.0,0.00023999,2]
[316454022,1709487036176,-500.0,0.00023999,2]
[316454024,1709487036186,-500.0,0.00023999,2]
[316454026,1709487036196,-331.2563515,0.00023999,2]
[316454028,1709487036210,-84497.12568175,0.00024,5]
[316454030,1709487036223,-2421663.9896252,0.00024,5]
[316454032,1709487036235,-19589.66421754,0.00024,5]
[316454500,1709487040498,-3141.19599029,0.00022543,2]
[316454502,1709487040508,-300.48032135,0.00024,5]
[316454504,1709487040521,-9131.0277488,0.00024,5]
[316454506,1709487040532,-2004.74760955,0.00024,5]
[316454514,1709487040596,-901442.0758924,0.00024,5]
[316454516,1709487040606,-500.0,0.00024,3]
[316454518,1709487040616,-151.0,0.00024,2]
[316454520,1709487040625,-512248.44284394,0.00024,5]
[316454608,1709487041445,-3067.29961026,0.00024,5]
[316454610,1709487041457,-15893.16038974,0.00024,5]
[316454792,1709487043299,-3364.90048083,0.00024,5]
[316454799,1709487043360,-1940.0,0.00024,5]
[316455147,1709487046466,-404.57846919,0.00023999,2]
[316455156,1709487046540,-131.18383311,0.00023999,2]
[316455158,1709487046549,-62645.69479099,0.00024,5]
[316455160,1709487046561,-531.542036,0.00024,5]
[316458416,1709487886185,587.4710624,0.0001872,2]